fUSD/lending_fUSD_20260108
["ID","MTS","AMOUNT","RATE_DAILY","PERIOD"]
[401074815,1767905445862,-7567.0,0.00017973,2]
[401074817,1767905445872,-356.0,0.00017973,2]
[401074819,1767905445881,-500.0,0.00017973,2]
[401074821,1767905445890,-500.0,0.00017973,2]
[401074823,1767905445899,-513.02244381,0.00017973,2]
[401074825,1767905445908,-426.73386812,0.00017973,2]
[401074827,1767905445917,-500.17178809,0.00017973,2]
[401074829,1767905445927,-504.45710441,0.00017973,2]
[401074831,1767905445936,-160.89060159,0.00017973,2]
[401074833,1767905445945,-159.904,0.00017973,2]
[401074835,1767905445955,-504.24318867,0.00017973,2]
[401074837,1767905445964,-500.0,0.00017973,2]
[401074839,1767905445973,-150.0,0.00017973,2]
[401074841,1767905445982,-568.48476984,0.00017973,2]
[401074843,1767905445991,-500.0,0.00017973,2]
[401074845,1767905446000,-500.0,0.00017973,2]
[401074847,1767905446010,-500.0,0.00017973,2]
[401074849,1767905446019,-500.0,0.00017973,2]
[401074851,1767905446029,-500.0,0.00017973,2]
[401074853,1767905446038,-150.49880534,0.00017973,2]
[401074855,1767905446047,-500.0,0.00017973,2]
[401074857,1767905446056,-385.16009683,0.00017973,2]
[401074859,1767905446065,-500.0,0.00017973,2]
[401074861,1767905446074,-500.0,0.00017973,2]
[401074872,1767905446170,-500.0,0.00017973,2]
[401074874,1767905446180,-500.0,0.00017973,2]
[401074876,1767905446189,-500.0,0.00017973,2]
[401074878,1767905446198,-500.0,0.00017973,2]
[401074880,1767905446207,-501.18870733,0.00017973,2]
[401074882,1767905446217,-500.0,0.00017973,2]
[401074884,1767905446226,-500.0,0.00017973,2]
[401074886,1767905446235,-500.0,0.00017973,2]
[401074888,1767905446244,-160.81509317,0.00017973,2]
[401074890,1767905446253,-500.0,0.00017973,2]
[401074892,1767905446262,-1000.0,0.00017973,2]
[401074894,1767905446271,-1299.0,0.00017979,2]
[401074896,1767905446282,-1000.0,0.00017986,2]
[401074898,1767905446291,-500.0,0.00017989,2]
[401074900,1767905446300,-1000.0,0.0001799,2]
[401074902,1767905446309,-1000.0,0.0001799,2]
[401074904,1767905446318,-893.22555293,0.0001799,2]
[401074906,1767905446327,-893.22555293,0.0001799,2]
[401074908,1767905446336,-233.29795827,0.00017999,2]
[401074910,1767905446345,-150.0,0.00017999,2]
[401074912,1767905446354,-300.0,0.00017999,2]
[401074914,1767905446363,-500.0,0.00017999,2]
[401074916,1767905446372,-500.0,0.00017999,2]
[401074917,1767905446381,-500.0,0.00017999,2]
[401074919,1767905446390,-500.0,0.00017999,2]
[401074921,1767905446399,-500.0,0.00017999,2]
[401074923,1767905446411,-500.0,0.00017999,2]
[401074926,1767905446421,-500.0,0.00017999,2]
[401074927,1767905446432,-500.0,0.00017999,2]
[401074929,1767905446441,-500.0,0.00017999,2]
[401074931,1767905446450,-500.0,0.00017999,2]
[401074933,1767905446459,-500.0,0.00017999,2]
[401074936,1767905446470,-500.0,0.00017999,2]
[401074937,1767905446481,-500.0,0.00017999,2]
[401074940,1767905446490,-500.0,0.00017999,2]
[401074941,1767905446500,-230.3513734,0.00017999,2]
[401074944,1767905446510,-303.86088657,0.00017999,2]
[401074946,1767905446520,-649.16,0.00017999,2]
[401074948,1767905446531,-649.16,0.00017999,2]
[401074950,1767905446543,-649.16,0.00017999,2]
[401074951,1767905446552,-649.16,0.00017999,2]
[401074954,1767905446562,-649.16,0.00017999,2]
[401074955,1767905446571,-649.16,0.00017999,2]
[401074958,1767905446580,-649.16,0.00017999,2]
[401074960,1767905446590,-649.16,0.00017999,2]
[401074962,1767905446600,-649.16,0.00017999,2]
[401074964,1767905446612,-649.16,0.00017999,2]
[401074965,1767905446623,-649.16,0.00017999,2]
[401074967,1767905446632,-649.16,0.00017999,2]
[401074969,1767905446642,-649.16,0.00017999,2]
[401074972,1767905446651,-649.16,0.00017999,2]
[401074973,1767905446660,-649.16,0.00017999,2]
[401074975,1767905446670,-649.16,0.00017999,2]
[401074977,1767905446679,-649.16,0.00017999,2]
[401074980,1767905446689,-649.16,0.00017999,2]
[401074982,1767905446699,-649.16,0.00017999,2]
[401074983,1767905446708,-649.16,0.00017999,2]
[401074985,1767905446717,-649.16,0.00017999,2]
[401074987,1767905446726,-649.3677512,0.00017999,2]
[401074990,1767905446738,-500.0,0.00017999,2]
[401074991,1767905446747,-500.0,0.00017999,2]
[401074993,1767905446756,-500.0,0.00017999,2]
[401074995,1767905446765,-577.6208976,0.00017999,2]
[401074997,1767905446775,-300.0,0.00017999,2]
[401074999,1767905446784,-300.0,0.00017999,2]
[401075001,1767905446794,-666.0,0.00017999,2]
[401075003,1767905446803,-11518.53087648,0.00017999,2]
[401075005,1767905446812,-300.0,0.00017999,2]
[401075007,1767905446821,-300.0,0.00017999,2]
[401075009,1767905446831,-666.0,0.00017999,2]
[401075011,1767905446841,-300.0,0.00017999,2]
[401075013,1767905446850,-666.0,0.00017999,2]
[401075015,1767905446859,-500.0,0.00017999,2]
[401075017,1767905446869,-500.0,0.00017999,2]
[401075019,1767905446878,-500.0,0.00017999,2]
[401075021,1767905446887,-500.0,0.00017999,2]
[401075023,1767905446896,-500.0,0.00017999,2]
[401075025,1767905446906,-500.0,0.00017999,2]
[401075027,1767905446915,-500.0,0.00017999,2]
[401075028,1767905446924,-459.26722753,0.00017999,2]
[401075031,1767905446934,-300.0,0.00017999,2]
[401075032,1767905446943,-300.0,0.00017999,2]
[401075034,1767905446953,-666.0,0.00017999,2]
[401075036,1767905446962,-150.1,0.00017999,2]
[401075039,1767905446971,-150.1,0.00017999,2]
[401075040,1767905446982,-5970.77362135,0.00017999,2]
[401075042,1767905446992,-1000.0,0.00018,2]
[401075044,1767905447002,-836.47750939,0.00018,2]
[401075046,1767905447011,-2448625.91110565,0.00018,2]
[401075048,1767905447021,-1391431.3905147,0.00018,2]
[401075063,1767905447163,-453.83,0.00018,2]
[401075064,1767905447174,-848.998004,0.00018,2]
[401075066,1767905447185,-31026.49979994,0.00018,2]
[401075239,1767905449050,-867.26068256,0.00018,2]
[401075244,1767905449080,-5642.70196642,0.00017759,3]
[401075370,1767905450260,-302.0,0.00017759,3]
[401075378,1767905450325,-3980.94781936,0.00017759,3]
[401075380,1767905450336,-9413.63528139,0.00017759,3]
[401075386,1767905450378,-2271.325,0.00017759,3]
[401076160,1767905636218,285.92,7.419e-05,2]
[401076163,1767906631683,-150.1,0.00011083,2]
[401076164,1767906631693,-150.1,0.00011083,2]
[401076165,1767906631702,-26.60947795,0.00011083,2]
[401076166,1767906631713,-245.96162935,0.00011083,2]
[401076167,1767906631722,-195.0,0.00011116,2]
[401076168,1767906631731,-142.32437168,0.00011148,2]
[401076169,1767906631742,-1221.36662832,0.00011148,2]
[401076170,1767906631752,-164.394,0.00011148,2]
[401076171,1767906631761,-162.34815179,0.00011174,2]
[401076172,1767906631770,-150.0,0.00011175,2]
[401076173,1767906631779,-1200.0,0.00011175,2]
[401076174,1767906631788,-16412.40381108,0.00011176,2]
[401076187,1767906631863,-10201.58067061,0.00011176,2]
[401076192,1767906631887,-8107.94060576,0.00011176,2]
[401076195,1767906631899,-63785.62335636,0.00011176,2]
[401076199,1767906631910,-906.0,0.00011176,2]
[401076202,1767906631930,-7304.69935868,0.00011176,2]
[401076208,1767906637682,-447.66174487,0.00011175,2]
[401076370,1767906639664,-52.33825513,0.00011175,2]
[401076371,1767906639674,-339.80569086,0.00011175,2]
[401076373,1767906639684,-357.92982875,0.00011175,2]
[401076375,1767906639693,-275.42949403,0.00011175,2]
[401076377,1767906639702,-320.16817628,0.00011175,2]
[401076380,1767906639712,-7442.18286697,0.00011176,2]
[401076387,1767906639771,-885839.56933054,0.00011176,2]
[401076389,1767906639781,-480.0,0.00011274,2]
[401076391,1767906639790,-266.81,0.00011275,2]
[401076393,1767906639799,-216.5318945,0.00011277,2]
[401076395,1767906639808,-4478.91397776,0.00011277,2]
[401076397,1767906639817,-151.0,0.00011369,2]
[401076399,1767906639826,-151.0,0.00011369,2]
[401076401,1767906639835,-151.0,0.00011369,2]
[401076403,1767906639844,-151.0,0.00011369,2]
[401076405,1767906639853,-151.0,0.00011369,2]
[401076407,1767906639862,-151.0,0.00011369,2]
[401076409,1767906639871,-151.0,0.00011369,2]
[401076411,1767906639880,-151.0,0.00011369,2]
[401076413,1767906639889,-151.0,0.00011369,2]
[401076415,1767906639898,-151.0,0.00011369,2]
[401076417,1767906639907,-151.0,0.00011369,2]
[401076452,1767906640222,-254.01296283,0.00011369,2]
[401076454,1767906640237,-1000.0,0.00011377,2]
[401076456,1767906640247,-4478.91397772,0.00012013,2]
[401076458,1767906640256,-9999.99,0.00012087,2]
[401076460,1767906640265,-195.0,0.00012192,2]
[401076462,1767906640274,-255.0,0.00012225,2]
[401076464,1767906640284,-1680.0,0.00012292,2]
[401076466,1767906640294,-320.5501043,0.00012747,2]
[401076468,1767906640303,-4478.91397772,0.00012749,2]
[401076470,1767906640312,-433.0,0.00013376,2]
[401076472,1767906640321,-4478.91397772,0.00013485,2]
[401076474,1767906640333,-2351.0,0.00013521,2]
[401076476,1767906640342,-500.0,0.00013698,2]
[401076478,1767906640351,-500.0,0.00013698,2]
[401076480,1767906640361,-500.0,0.00013698,2]
[401076482,1767906640370,-500.0,0.00013698,2]
[401076484,1767906640379,-649.16,0.00013698,2]
[401076486,1767906640388,-649.16,0.00013698,2]
[401076488,1767906640399,-649.16,0.00013698,2]
[401076490,1767906640409,-649.16,0.00013698,2]
[401076492,1767906640418,-500.0,0.00013698,2]
[401076494,1767906640427,-500.0,0.00013698,2]
[401076496,1767906640436,-500.0,0.00013698,2]
[401076498,1767906640446,-500.0,0.00013698,2]
[401076500,1767906640455,-500.0,0.00013698,2]
[401076502,1767906640464,-500.0,0.00013698,2]
[401076504,1767906640473,-500.0,0.00013698,2]
[401076506,1767906640483,-500.0,0.00013698,2]
[401076508,1767906640492,-500.0,0.00013698,2]
[401076510,1767906640501,-821.63,0.00013698,2]
[401076512,1767906640510,-821.63,0.00013698,2]
[401076514,1767906640519,-821.63,0.00013698,2]
[401076516,1767906640528,-821.63,0.00013698,2]
[401076518,1767906640537,-1000.0,0.00013978,2]
[401076520,1767906640546,-3240.0,0.00014171,2]
[401076522,1767906640555,-5066.76,0.00014171,2]
[401076524,1767906640564,-999.0,0.00014171,3]
[401076526,1767906640573,-500.0,0.0001422,2]
[401076527,1767906640582,-649.16,0.0001422,2]
[401076529,1767906640590,-821.63,0.0001422,2]
[401076531,1767906640599,-4478.91397772,0.00014221,2]
[401076533,1767906640609,-200.0,0.00014496,2]
[401076535,1767906640618,-152.0,0.00014529,2]
[401076537,1767906640627,-169.13255574,0.00014529,2]
[401076539,1767906640636,-893.22555293,0.00014538,2]
[401076541,1767906640646,-35229.56,0.00014548,2]
[401076543,1767906640655,-1000.0,0.00014623,2]
[401076545,1767906640665,-736.0,0.00014628,2]
[401076547,1767906640674,-250.0,0.00014645,2]
[401076549,1767906640684,-1000.0,0.00014647,2]
[401076551,1767906640693,-1000.0,0.00014676,2]
[401076553,1767906640702,-500.0,0.00014763,2]
[401076555,1767906640711,-520.5636209,0.00014763,2]
[401076557,1767906640721,-500.0,0.00014763,2]
[401076559,1767906640731,-500.0,0.00014763,2]
[401076561,1767906640740,-3292.0,0.00014873,2]
[401076563,1767906640750,-1000.0,0.00014913,2]
[401076565,1767906640759,-4478.91397772,0.00014956,2]
[401076567,1767906640768,-1000.0,0.00015047,2]
[401076569,1767906640777,-1000.0,0.00015122,2]
[401076571,1767906640787,-150.0,0.00015299,2]
[401076573,1767906640796,-150.0,0.00015309,2]
[401076575,1767906640805,-1000.0,0.0001531,2]
[401076577,1767906640814,-1000.0,0.0001531,2]
[401076579,1767906640823,-1000.0,0.0001531,2]
[401076581,1767906640834,-1000.0,0.00015349,2]
[401076583,1767906640843,-1000.0,0.00015454,2]
[401076585,1767906640853,-1000.0,0.0001551,2]
[401076587,1767906640862,-1000.0,0.00015571,2]
[401076589,1767906640872,-1000.0,0.00015638,2]
[401076591,1767906640881,-1000.0,0.00015646,2]
[401076593,1767906640890,-1000.0,0.00015652,2]
[401076595,1767906640899,-1000.0,0.00015666,2]
[401076597,1767906640908,-1000.0,0.00015671,2]
[401076599,1767906640917,-1000.0,0.00015692,2]
[401076601,1767906640928,-4478.91397772,0.00015692,2]
[401076603,1767906640938,-1000.0,0.00015733,2]
[401076605,1767906640947,-1000.0,0.00015747,2]
[401076607,1767906640956,-1000.0,0.00015778,2]
[401076609,1767906640966,-1000.0,0.0001578,2]
[401076611,1767906640976,-1000.0,0.00015783,2]
[401076613,1767906640985,-1500.0,0.00015858,2]
[401076615,1767906640994,-1500.0,0.00015858,2]
[401076617,1767906641003,-1500.0,0.00015858,2]
[401076619,1767906641012,-333.83,0.00015866,2]
[401076621,1767906641021,-1000.0,0.00015879,2]
[401076623,1767906641031,-1000.0,0.00015922,2]
[401076625,1767906641040,-1000.0,0.00015931,2]
[401076627,1767906641048,-1000.0,0.00015958,2]
[401076629,1767906641058,-150.0,0.00015964,2]
[401076631,1767906641067,-1252.0,0.00016002,2]
[401076633,1767906641076,-1000.0,0.00016015,2]
[401076635,1767906641085,-1000.0,0.00016071,2]
[401076637,1767906641094,-150.0,0.00016109,2]
[401076639,1767906641103,-153.65010095,0.00016109,2]
[401076641,1767906641113,-500.0,0.00016109,2]
[401076643,1767906641122,-157.03274317,0.00016109,2]
[401076645,1767906641131,-171.05172936,0.00016109,2]
[401076647,1767906641140,-150.0,0.00016109,2]
[401076649,1767906641150,-150.0,0.00016109,2]
[401076651,1767906641160,-500.0,0.00016109,2]
[401076653,1767906641170,-150.0,0.00016109,2]
[401076655,1767906641179,-150.0,0.00016109,2]
[401076657,1767906641188,-500.0,0.00016109,2]
[401076659,1767906641200,-150.0,0.00016109,2]
[401076661,1767906641211,-500.0,0.00016109,2]
[401076663,1767906641220,-224.78328857,0.00016109,2]
[401076665,1767906641229,-500.0,0.00016109,2]
[401076667,1767906641237,-2293.0,0.00016109,2]
[401076669,1767906641246,-500.0,0.00016109,2]
[401076671,1767906641255,-500.0,0.00016115,2]
[401076673,1767906641264,-500.0,0.00016115,2]
[401076675,1767906641273,-9999.99,0.00016116,2]
[401076677,1767906641282,-1000.0,0.00016141,2]
[401076679,1767906641291,-1000.0,0.00016159,2]
[401076681,1767906641301,-150.0,0.00016164,2]
[401076683,1767906641310,-500.0,0.00016164,2]
[401076685,1767906641319,-190.19225777,0.00016164,2]
[401076687,1767906641328,-500.0,0.00016164,2]
[401076689,1767906641338,-250.0,0.00016164,2]
[401076691,1767906641347,-500.0,0.00016164,2]
[401076693,1767906641357,-150.0,0.00016164,2]
[401076695,1767906641366,-500.0,0.00016164,2]
[401076697,1767906641375,-500.0,0.00016164,2]
[401076699,1767906641384,-2293.0,0.00016164,2]
[401076701,1767906641393,-500.0,0.00016164,2]
[401076703,1767906641409,-150.0,0.00016164,2]
[401076705,1767906641418,-1000.0,0.00016166,2]
[401076707,1767906641427,-1000.0,0.0001618,2]
[401076709,1767906641436,-150.0,0.00016192,2]
[401076711,1767906641447,-1000.0,0.00016208,2]
[401076713,1767906641456,-150.0,0.00016219,2]
[401076715,1767906641465,-500.0,0.00016219,2]
[401076717,1767906641475,-500.0,0.00016219,2]
[401076719,1767906641484,-500.0,0.00016219,2]
[401076721,1767906641493,-500.0,0.00016219,2]
[401076723,1767906641502,-500.0,0.00016219,2]
[401076725,1767906641511,-2293.0,0.00016219,2]
[401076727,1767906641521,-500.0,0.00016219,2]
[401076729,1767906641530,-1000.0,0.00016228,2]
[401076731,1767906641539,-993.92526434,0.00016261,2]
[401076733,1767906641548,-150.0,0.00016266,2]
[401076735,1767906641558,-150.0,0.00016273,2]
[401076737,1767906641567,-500.0,0.00016273,2]
[401076739,1767906641576,-500.0,0.00016273,2]
[401076741,1767906641586,-500.0,0.00016273,2]
[401076743,1767906641595,-500.0,0.00016273,2]
[401076745,1767906641604,-500.0,0.00016273,2]
[401076747,1767906641613,-2293.0,0.00016273,2]
[401076749,1767906641623,-500.0,0.00016273,2]
[401076751,1767906641632,-157.72323008,0.00016308,2]
[401076753,1767906641640,-1000.0,0.00016318,2]
[401076755,1767906641649,-150.0,0.00016328,2]
[401076757,1767906641658,-500.0,0.00016328,2]
[401076759,1767906641667,-500.0,0.00016328,2]
[401076761,1767906641676,-500.0,0.00016328,2]
[401076763,1767906641685,-500.0,0.00016328,2]
[401076765,1767906641694,-500.0,0.00016328,2]
[401076767,1767906641704,-2293.0,0.00016328,2]
[401076769,1767906641714,-500.0,0.00016328,2]
[401076771,1767906641723,-1000.0,0.00016338,2]
[401076773,1767906641732,-1000.0,0.00016348,2]
[401076775,1767906641741,-1000.0,0.00016353,2]
[401076777,1767906641750,-4609.0,0.00016361,2]
[401076779,1767906641759,-250.0,0.00016383,2]
[401076781,1767906641768,-295.72412489,0.00016383,2]
[401076782,1767906641777,-500.0,0.00016383,2]
[401076784,1767906641787,-500.0,0.00016383,2]
[401076786,1767906641796,-500.0,0.00016383,2]
[401076788,1767906641805,-500.0,0.00016383,2]
[401076790,1767906641814,-2293.0,0.00016383,2]
[401076792,1767906641823,-500.0,0.00016383,2]
[401076794,1767906641832,-1000.0,0.00016383,2]
[401076796,1767906641842,-1000.0,0.0001639,2]
[401076798,1767906641851,-833.0,0.000164,2]
[401076800,1767906641860,-833.0,0.000164,2]
[401076802,1767906641870,-162.0,0.000164,2]
[401076804,1767906641879,-162.0,0.000164,2]
[401076806,1767906641889,-833.0,0.000164,2]
[401076808,1767906641897,-162.0,0.000164,2]
[401076810,1767906641909,-833.0,0.000164,2]
[401076812,1767906641918,-833.0,0.000164,2]
[401076814,1767906641927,-833.0,0.000164,2]
[401076816,1767906641936,-162.0,0.000164,2]
[401076818,1767906641944,-833.0,0.000164,2]
[401076820,1767906641955,-162.0,0.000164,2]
[401076822,1767906641964,-162.0,0.000164,2]
[401076824,1767906641974,-1693.73266833,0.00016406,2]
[401076826,1767906641984,-1199.80942896,0.00016406,2]
[401076827,1767906641993,-2000.0,0.00016406,2]
[401076828,1767906642003,-1000.0,0.00016407,2]
[401076829,1767906642012,-1000.0,0.00016408,2]
[401076831,1767906642022,-16771.64062921,0.00016428,2]
[401076833,1767906642031,-4478.91397772,0.00016428,2]
[401076835,1767906642040,-1000.0,0.00016433,2]
[401076837,1767906642049,-500.0,0.00016437,2]
[401076839,1767906642058,-649.16,0.00016437,2]
[401076841,1767906642068,-821.63,0.00016437,2]
[401076843,1767906642077,-585.48487047,0.00016438,2]
[401076845,1767906642086,-500.0,0.00016438,2]
[401076848,1767906642096,-500.0,0.00016438,2]
[401076850,1767906642105,-500.0,0.00016438,2]
[401076852,1767906642114,-2293.0,0.00016438,2]
[401076854,1767906642125,-310.58203018,0.00016438,2]
[401076856,1767906642135,-4109.4,0.00016438,2]
[401076858,1767906642143,-150.0,0.00016438,2]
[401076860,1767906642153,-24062.0,0.00016438,2]
[401076862,1767906642161,-800.0,0.00016438,2]
[401076864,1767906642170,-1000.0,0.00016471,2]
[401076866,1767906642179,-1000.0,0.00016485,2]
[401076867,1767906642188,-289.85184336,0.00016493,2]
[401076869,1767906642198,-500.0,0.00016493,2]
[401076871,1767906642207,-500.0,0.00016493,2]
[401076873,1767906642216,-2293.0,0.00016493,2]
[401076875,1767906642226,-150.0,0.00016493,2]
[401076877,1767906642235,-1000.0,0.00016506,2]
[401076879,1767906642245,-166.04276169,0.00016529,2]
[401076881,1767906642254,-1000.0,0.0001653,2]
[401076883,1767906642263,-150.0,0.00016545,2]
[401076885,1767906642273,-150.0,0.00016547,2]
[401076887,1767906642282,-208.22403406,0.00016547,2]
[401076889,1767906642292,-500.0,0.00016547,2]
[401076891,1767906642302,-2293.0,0.00016547,2]
[401076893,1767906642311,-150.0,0.00016548,2]
[401076895,1767906642321,-1000.0,0.00016562,2]
[401076897,1767906642331,-150.0,0.00016566,2]
[401076899,1767906642341,-1000.0,0.00016572,2]
[401076901,1767906642350,-1000.0,0.00016588,2]
[401076903,1767906642359,-629.29362805,0.00016602,2]
[401076905,1767906642368,-2293.0,0.00016602,2]
[401076907,1767906642378,-150.0,0.00016602,2]
[401076909,1767906642387,-1000.0,0.00016603,2]
[401076912,1767906642398,-1000.0,0.00016628,2]
[401076915,1767906642410,-1000.0,0.00016639,2]
[401076917,1767906642420,-2293.0,0.00016657,2]
[401076920,1767906642429,-295.08159117,0.00016657,2]
[401076922,1767906642437,-1000.0,0.00016662,2]
[401076924,1767906642449,-1000.0,0.0001667,2]
[401076926,1767906642458,-1000.0,0.00016701,2]
[401076928,1767906642468,-1000.0,0.00016701,2]
[401076930,1767906642478,-500.0,0.00016711,2]
[401076933,1767906642487,-500.0,0.00016711,2]
[401076935,1767906642497,-2293.0,0.00016712,2]
[401076937,1767906642506,-4109.4,0.00016712,2]
[401076938,1767906642515,-165.16,0.00016712,2]
[401076940,1767906642524,-1000.0,0.00016717,2]
[401076942,1767906642534,-162.0,0.0001672,2]
[401076944,1767906642543,-833.0,0.0001672,2]
[401076947,1767906642554,-162.0,0.0001672,2]
[401076949,1767906642564,-833.0,0.0001672,2]
[401076951,1767906642574,-833.0,0.0001672,2]
[401076953,1767906642583,-833.0,0.0001672,2]
[401076955,1767906642595,-833.0,0.0001672,2]
[401076957,1767906642604,-162.0,0.0001672,2]
[401076959,1767906642613,-833.0,0.0001672,2]
[401076961,1767906642623,-163.0,0.0001672,2]
[401076963,1767906642632,-1000.0,0.00016732,2]
[401076965,1767906642642,-1000.0,0.00016739,2]
[401076967,1767906642652,-1000.0,0.00016751,2]
[401076969,1767906642661,-2293.0,0.00016767,2]
[401076971,1767906642670,-1000.0,0.00016796,2]
[401076973,1767906642679,-150.0,0.00016815,2]
[401076975,1767906642688,-2293.0,0.00016821,2]
[401076976,1767906642698,-1000.0,0.00016827,2]
[401076978,1767906642707,-820.0305175,0.00016833,2]
[401076981,1767906642716,-1000.0,0.00016854,2]
[401076983,1767906642726,-1000.0,0.00016857,2]
[401076985,1767906642735,-1000.0,0.00016857,2]
[401076987,1767906642743,-469.50438451,0.00016868,2]
[401076989,1767906642753,-1000.0,0.00016871,2]
[401076991,1767906642762,-2293.0,0.00016876,2]
[401076993,1767906642771,-157.72323008,0.00016891,2]
[401076995,1767906642780,-1000.0,0.00016892,2]
[401076997,1767906642789,-1000.0,0.00016893,2]
[401076999,1767906642799,-1000.0,0.00016907,2]
[401077001,1767906642808,-2293.0,0.00016931,2]
[401077003,1767906642817,-2500.0,0.00016954,2]
[401077004,1767906642827,-1000.0,0.00016972,2]
[401077006,1767906642836,-1000.0,0.00016978,2]
[401077009,1767906642845,-1000.0,0.00016983,2]
[401077011,1767906642854,-2293.0,0.00016986,2]
[401077012,1767906642864,-4109.4,0.00016986,2]
[401077015,1767906642873,-1000.0,0.00016995,2]
[401077017,1767906642883,-10000.0,0.00016999,2]
[401077018,1767906642892,-500.0,0.00017,2]
[401077020,1767906642903,-500.0,0.00017,2]
[401077022,1767906642912,-500.0,0.00017,5]
[401077024,1767906642922,-500.0,0.00017,2]
[401077026,1767906642931,-500.0,0.00017,5]
[401077028,1767906642940,-500.0,0.00017,2]
[401077030,1767906642949,-198.15865542,0.00017,5]
[401077032,1767906642959,-500.0,0.00017,5]
[401077034,1767906642968,-500.0,0.00017,2]
[401077036,1767906642977,-500.0,0.00017,5]
[401077038,1767906642987,-4000.0,0.00017,2]
[401077040,1767906642996,-328.08928029,0.00017,2]
[401077042,1767906643005,-2879.33418479,0.00017005,2]
[401077044,1767906643014,-1090.43412186,0.00017005,2]
[401077046,1767906643023,-979.88092702,0.00017005,2]
[401077048,1767906643032,-1119.21541804,0.00017005,2]
[401077050,1767906643042,-1000.0,0.00017016,2]
[401077053,1767906643051,-1000.0,0.00017037,2]
[401077054,1767906643060,-833.0,0.0001704,2]
[401077056,1767906643069,-162.0,0.0001704,2]
[401077058,1767906643079,-833.0,0.0001704,2]
[401077061,1767906643088,-162.0,0.0001704,2]
[401077063,1767906643098,-833.0,0.0001704,2]
[401077065,1767906643107,-833.0,0.0001704,2]
[401077067,1767906643116,-833.0,0.0001704,2]
[401077068,1767906643125,-833.0,0.0001704,2]
[401077071,1767906643134,-2293.0,0.00017041,2]
[401077073,1767906643144,-1000.0,0.00017046,2]
[401077075,1767906643153,-1000.0,0.0001707,2]
[401077076,1767906643163,-1000.0,0.00017075,2]
[401077078,1767906643172,-2293.0,0.00017095,2]
[401077081,1767906643181,-500.0,0.00017098,2]
[401077082,1767906643190,-649.16,0.00017098,2]
[401077084,1767906643200,-821.63,0.00017098,2]
[401077086,1767906643209,-201.93286099,0.00017099,2]
[401077088,1767906643219,-500.0,0.00017099,2]
[401077090,1767906643229,-151.0,0.00017099,2]
[401077092,1767906643238,-500.0,0.00017099,2]
[401077094,1767906643247,-250.0,0.00017099,2]
[401077096,1767906643256,-500.0,0.00017099,2]
[401077098,1767906643266,-250.0,0.00017099,2]
[401077100,1767906643275,-500.0,0.00017099,2]
[401077102,1767906643284,-250.0,0.00017099,2]
[401077104,1767906643292,-500.0,0.00017099,2]
[401077106,1767906643301,-250.0,0.00017099,2]
[401077108,1767906643310,-500.0,0.00017099,2]
[401077110,1767906643319,-500.0,0.00017099,2]
[401077112,1767906643328,-250.0,0.00017099,2]
[401077114,1767906643337,-500.0,0.00017099,2]
[401077116,1767906643347,-500.0,0.00017099,2]
[401077118,1767906643356,-250.0,0.00017099,2]
[401077120,1767906643365,-500.0,0.00017099,2]